bitfinex-derivatives/quotes_SOLF0:USTF0_20250909
["timestamp","ask_amount","ask_price","bid_price","bid_amount"]
[1757410852878,2.97962719,219.25,219.16,4.22191098]
[1757410853088,1.29,219.23,219.15,7.5]
[1757410853289,1.29,219.23,219.16,4.22303037]
[1757410853486,42.91,219.24,219.17,4.22257069]
[1757410853788,56.29,219.24,219.19,7.5]
[1757410853983,56.29,219.24,219.14,7.5]
[1757410854192,56.29,219.24,219.16,7.5]
[1757410854384,56.29,219.24,219.18,7.5]
[1757410856585,1.29,219.3,219.18,7.5]
[1757410856793,1.29,219.3,219.2,7.5]
[1757410856989,1.29,219.3,219.21,4.22453409]
[1757410857188,1.29,219.3,219.2,7.5]
[1757410857388,1.29,219.29,219.22,7.5]
[1757410865593,1.29,219.3,219.22,7.5]
[1757410865798,2.97962719,219.3,219.22,7.5]
[1757410866100,1.29,219.29,219.22,7.5]
[1757410866294,2.97962719,219.3,219.22,7.5]
[1757410866496,1.29,219.29,219.22,7.5]
[1757410866696,2.97962719,219.3,219.22,7.5]
[1757410867294,2.97962719,219.3,219.17,7.5]
[1757410867497,87.84837327,219.33,219.22,2.97962719]
[1757410867697,87.84837327,219.33,219.23,4.22554654]
[1757410868000,87.84837327,219.33,219.25,7.5]
[1757410873204,112.52,219.33,219.27,7.5]
[1757410879306,1.29,219.34,219.27,7.5]
[1757410879504,112.38,219.33,219.27,7.5]
[1757410891217,1.28,219.32,219.27,7.5]
[1757410891814,112.38,219.33,219.26,2.97962719]
[1757410892117,1.28,219.32,219.26,9.98962719]
[1757410894315,1.28,219.32,219.3,1.90421703]
[1757410894617,112.38,219.33,219.3,1.90421703]
[1757410894812,1.28,219.32,219.3,1.90421703]
[1757410895019,112.38,219.33,219.3,1.90421703]
[1757410895312,1.28,219.32,219.3,1.90421703]
[1757410895715,112.38,219.33,219.3,1.90421703]
[1757410895918,1.28,219.32,219.3,1.90421703]
[1757410896517,112.38,219.33,219.3,1.90421703]
[1757410896918,1.28,219.32,219.3,1.90421703]
[1757410897515,112.38,219.33,219.3,1.90421703]
[1757410897714,1.28,219.32,219.3,1.90421703]
[1757410897915,112.38,219.33,219.3,1.90421703]
[1757410898417,1.28,219.32,219.3,1.90421703]
[1757410899016,1.28,219.37,219.31,7.01]
[1757410899219,111.94,219.36,219.31,7.01]
[1757410899617,1.28,219.35,219.31,7.01]
[1757410899816,111.94,219.36,219.31,7.01]
[1757410900321,1.28,219.35,219.31,7.01]
[1757410900524,111.94,219.36,219.31,7.01]
[1757410900821,1.28,219.35,219.31,7.01]
[1757410902625,111.94,219.36,219.31,7.01]
[1757410903021,1.3,219.35,219.32,1.90421703]
[1757410903430,1.28,219.35,219.32,1.90421703]
[1757410903828,111.94,219.36,219.32,1.90421703]
[1757410904331,1.28,219.35,219.32,1.90421703]
[1757410904629,111.94,219.36,219.32,1.90421703]
[1757410904825,1.28,219.35,219.32,1.90421703]
[1757410905231,111.94,219.36,219.32,1.90421703]
[1757410905935,1.28,219.35,219.32,1.90421703]
[1757410906335,111.94,219.36,219.32,1.90421703]
[1757410906530,1.28,219.35,219.32,1.90421703]
[1757410908436,111.94,219.36,219.32,1.90421703]
[1757410909039,1.28,219.35,219.32,1.90421703]
[1757410909234,111.94,219.36,219.32,1.90421703]
[1757410909434,1.28,219.35,219.32,1.90421703]
[1757410910636,111.94,219.36,219.32,1.90421703]
[1757410911240,1.28,219.35,219.32,1.90421703]
[1757410911639,111.94,219.36,219.32,1.90421703]
[1757410912041,1.28,219.35,219.32,1.90421703]
[1757410912240,111.94,219.36,219.32,1.90421703]
[1757410912641,1.28,219.35,219.32,1.90421703]
[1757410913044,111.94,219.36,219.32,1.90421703]
[1757410913237,1.28,219.35,219.32,1.90421703]
[1757410913537,111.94,219.36,219.32,1.90421703]
[1757410913744,111.94,219.36,219.32,8.87421703]
[1757410914346,1.28,219.35,219.32,8.87421703]
[1757410914738,1.28,219.35,219.32,6.97]
[1757410915244,111.94,219.36,219.32,6.97]
[1757410915544,1.28,219.35,219.32,6.97]
[1757410916845,113.22,219.36,219.32,6.97]
[1757410917044,113.22,219.36,219.31,1.90421703]
[1757410917237,113.22,219.36,219.32,6.97]
[1757410917643,113.22,219.36,219.31,1.90421703]
[1757410917946,1.28,219.35,219.31,1.90421703]
[1757410918546,1.28,219.35,219.32,6.97]
[1757410919746,111.94,219.36,219.32,6.97]
[1757410920149,1.28,219.35,219.33,6.97]
[1757410924056,119.14594026,219.34,219.33,6.97]
[1757410928360,111.48,219.34,219.33,6.97]
[1757410928857,8.94594026,219.35,219.32,6.97]
[1757410929063,111.42,219.34,219.32,6.97]
[1757410929565,7.66594026,219.37,219.32,6.97]
[1757410929762,25.46,219.36,219.33,1.90421703]
[1757410929966,25.46,219.36,219.34,6.97]
[1757410930563,7.66594026,219.37,219.36,6.97]
[1757410930756,49.78,219.37,219.36,6.97]
[1757410930952,51.06,219.37,219.35,1.90421703]
[1757410931154,51.06,219.37,219.35,8.87421703]
[1757410931668,51.06,219.37,219.35,6.97]
[1757410931866,51.06,219.37,219.34,1.90421703]
[1757410932066,49.78,219.37,219.35,6.97]
[1757410935168,51.06,219.37,219.35,6.97]
[1757410936870,49.78,219.37,219.34,1.90421703]
[1757410937071,49.78,219.37,219.3,1.90421703]
[1757410937268,1.28,219.36,219.3,1.90421703]
[1757410938067,49.78,219.37,219.3,1.90421703]
[1757410938670,1.28,219.35,219.28,1.90421703]
[1757410938870,1.90421703,219.36,219.28,1.90421703]
[1757410939075,1.28,219.34,219.28,1.90421703]
[1757410941571,1.28,219.29,219.21,1.90421703]
[1757410941772,66.56,219.28,219.22,4.23540685]
[1757410941974,66.56,219.28,219.21,1.90421703]
[1757410941975,1.28,219.27,219.21,1.90421703]
[1757410942174,1.28,219.27,219.19,7.5]
[1757410942175,1.28,219.27,219.19,9.40421703]
[1757410942376,68.46421703,219.28,219.2,4.23621283]
[1757410942576,1.28,219.27,219.19,9.40421703]
[1757410942877,1.28,219.27,219.21,7.5]
[1757410943083,1.28,219.27,219.21,9.40421703]
[1757410946683,66.56,219.28,219.22,7.5]
[1757410946884,1.28,219.3,219.24,7.5]
[1757410947085,68.46,219.3,219.24,7.5]
[1757410950691,1.28,219.3,219.24,7.5]
[1757410954392,7.1,219.32,219.26,7.5]
[1757410955795,1.28,219.33,219.26,7.5]
[1757410956002,9.32,219.33,219.26,7.5]
[1757410957100,1.28,219.33,219.26,7.5]
[1757410957293,18.54,219.33,219.26,7.5]
[1757410959790,1.28,219.37,219.27,2.97647994]
[1757410960003,0.03294144,219.32,219.28,7.5]
[1757410966500,0.03294144,219.32,219.28,7.71]
[1757410966697,0.03294144,219.32,219.26,7.71]
[1757410977408,0.03294144,219.32,219.26,11.8142]
[1757410977715,0.03294144,219.32,219.27,7.71]
[1757410988317,0.03294144,219.32,219.29,7.71]
[1757410989926,0.03294144,219.32,219.3,7.71]
[1757410992018,0.03294144,219.32,219.3,2.97647994]
[1757410992229,0.03294144,219.32,219.31,7.71]
[1757410999129,0.03294144,219.32,219.31,11.77585135]
[1757411000723,0.03294144,219.32,219.31,11.7749265]
[1757411002230,1.27,219.42,219.32,6.96]
[1757411002429,32.6,219.43,219.33,2.97647994]
[1757411003029,1.27,219.42,219.33,2.97647994]
[1757411003527,1.27,219.42,219.35,0.03359903]
[1757411006432,1.73,219.42,219.35,0.03359903]
[1757411006630,10.64531477,219.41,219.35,0.03359903]
[1757411006830,1.27,219.4,219.35,0.03359903]
[1757411009231,10.64531477,219.41,219.35,0.03359903]
[1757411009436,1.27,219.41,219.35,6.99359903]
[1757411009633,111.02,219.4,219.35,6.99359903]
[1757411010034,1.27,219.39,219.35,6.99359903]
[1757411010332,111.02,219.4,219.35,6.99359903]
[1757411010529,1.27,219.39,219.35,6.99359903]
[1757411010730,111.02,219.4,219.35,6.99359903]
[1757411011130,1.27,219.39,219.35,6.99359903]
[1757411011336,111.02,219.4,219.35,6.99359903]
[1757411011637,1.27,219.39,219.36,6.96]
[1757411012231,111.02,219.4,219.36,6.96]
[1757411012632,1.27,219.39,219.36,6.96]
[1757411012837,111.02,219.4,219.36,6.96]
[1757411013033,1.27,219.39,219.36,6.96]
[1757411015639,7.66883483,219.41,219.35,0.03359903]
[1757411015843,111.0,219.4,219.36,6.96]
[1757411016336,112.27,219.4,219.35,1.93673553]
[1757411016536,112.27,219.4,219.36,6.96]
[1757411016741,112.27,219.4,219.35,1.93673553]
[1757411016941,112.27,219.4,219.36,6.96]
[1757411017138,112.27,219.4,219.35,1.93673553]
[1757411017336,112.27,219.4,219.36,6.96]
[1757411017536,112.27,219.4,219.35,1.93673553]
[1757411017737,112.27,219.4,219.36,6.96]
[1757411017943,112.27,219.4,219.35,1.93673553]
[1757411018140,112.27,219.4,219.36,6.96]
[1757411018547,111.0,219.4,219.36,6.96]
[1757411018746,112.27,219.4,219.36,6.96]
[1757411019150,111.0,219.4,219.36,6.96]
[1757411019345,111.0,219.4,219.35,0.03359903]
[1757411019549,1.27,219.39,219.35,6.99359903]
[1757411020050,111.0,219.4,219.35,6.99359903]
[1757411020348,1.27,219.39,219.35,6.99359903]
[1757411020847,111.0,219.4,219.35,6.99359903]
[1757411021048,1.27,219.39,219.35,6.99359903]
[1757411021543,1.27,219.39,219.36,6.96]
[1757411025747,1.27,219.39,219.36,7.03]
[1757411027648,1.27,219.39,219.35,0.03359903]
[1757411028146,1.27,219.39,219.36,7.03]
[1757411028347,1.27,219.39,219.35,0.03359903]
[1757411028646,1.27,219.39,219.36,7.03]
[1757411029553,1.27,219.39,219.35,0.03359903]
[1757411029951,1.27,219.39,219.36,7.03]
[1757411030353,1.27,219.39,219.35,0.03359903]
[1757411030852,1.27,219.39,219.36,7.03]
[1757411031253,1.27,219.39,219.35,0.03359903]
[1757411031448,1.27,219.39,219.36,7.03]
[1757411031948,1.27,219.39,219.35,0.03359903]
[1757411032454,1.27,219.39,219.36,7.03]
[1757411033452,1.27,219.39,219.35,0.03359903]
[1757411033659,1.27,219.39,219.36,7.03]
[1757411033955,1.27,219.39,219.35,0.03359903]
[1757411034156,1.27,219.39,219.36,7.03]
[1757411034756,1.27,219.39,219.35,0.03359903]
[1757411035254,1.27,219.39,219.36,7.03]
[1757411035849,1.27,219.39,219.35,0.03359903]
[1757411036049,1.27,219.39,219.36,7.03]
[1757411036456,1.27,219.39,219.35,0.03359903]
[1757411036756,1.27,219.39,219.36,7.03]
[1757411038050,1.27,219.39,219.35,0.03359903]
[1757411038247,1.27,219.39,219.36,7.03]
[1757411038648,1.27,219.39,219.35,0.03359903]
[1757411039156,1.27,219.39,219.36,7.03]
[1757411039352,1.27,219.39,219.35,0.03359903]
[1757411039652,1.27,219.39,219.36,7.03]
[1757411039857,1.27,219.39,219.35,0.03359903]
[1757411041052,1.27,219.39,219.36,7.03]
[1757411041757,1.27,219.39,219.35,0.03359903]
[1757411041959,1.27,219.39,219.36,7.03]
[1757411042660,1.27,219.39,219.35,0.03359903]
[1757411042857,1.27,219.39,219.36,7.03]
[1757411043252,1.27,219.39,219.35,0.03359903]
[1757411043559,1.27,219.39,219.36,7.03]
[1757411044463,1.27,219.39,219.35,0.03359903]
[1757411044664,1.27,219.39,219.36,7.03]
[1757411044855,1.27,219.39,219.35,0.03359903]
[1757411045060,1.27,219.39,219.36,7.03]
[1757411045261,1.27,219.39,219.35,0.03359903]
[1757411045462,1.27,219.39,219.36,7.03]
[1757411046560,1.27,219.39,219.35,0.03359903]
[1757411046761,1.27,219.39,219.36,7.03]
[1757411047465,1.27,219.39,219.35,0.03359903]
[1757411047862,1.27,219.39,219.36,7.03]
[1757411048261,1.27,219.39,219.35,0.03359903]
[1757411048464,1.27,219.39,219.36,11.2184802]
[1757411048664,1.27,219.39,219.37,7.03]
[1757411049063,1.28,219.45,219.38,1.9031365]
[1757411049274,7.66883483,219.48,219.41,7.03]
[1757411049275,1.9031365,219.48,219.41,7.03]
[1757411049470,1.9031365,219.5,219.42,1.9031365]
[1757411049660,1.28,219.46,219.43,7.03]
[1757411050766,110.98,219.47,219.43,7.03]
[1757411051166,1.28,219.46,219.43,7.03]
[1757411051367,1.28,219.45,219.43,7.03]
[1757411052065,110.96,219.46,219.43,7.03]
[1757411052470,112.24,219.46,219.42,1.93542184]
[1757411053374,1.9031365,219.5,219.43,7.28]
[1757411053574,1.28,219.48,219.45,7.28]
[1757411054471,110.96,219.47,219.45,7.28]
[1757411057170,112.24,219.47,219.45,7.28]
[1757411065686,112.24,219.47,219.44,1.9031365]
[1757411065687,1.28,219.46,219.44,9.1831365]
[1757411065889,1.28,219.46,219.43,9.1831365]
[1757411066083,1.28,219.46,219.44,7.28]
[1757411067489,110.92,219.46,219.44,7.28]
[1757411067897,110.92,219.46,219.43,1.9031365]
[1757411068389,110.92,219.46,219.44,7.28]
[1757411068989,1.28,219.45,219.43,1.9031365]
[1757411069189,110.92,219.46,219.44,7.28]
[1757411069791,112.2,219.46,219.44,7.28]
[1757411069997,1.28,219.45,219.42,9.21542184]
[1757411070796,1.28,219.45,219.42,1.93542184]
[1757411070998,1.28,219.45,219.43,7.28]
[1757411073396,110.92,219.46,219.43,7.28]
[1757411073600,110.92,219.46,219.42,1.93542184]
[1757411074103,110.92,219.46,219.43,7.28]
[1757411074694,110.9,219.46,219.45,7.28]
[1757411076698,110.9,219.46,219.44,1.9031365]
[1757411076900,112.18,219.46,219.44,9.1831365]
[1757411078307,112.18,219.46,219.44,7.28]
[1757411082201,110.9,219.46,219.44,7.28]
[1757411082407,1.28,219.45,219.44,7.28]
[1757411082608,110.9,219.46,219.44,7.28]
[1757411082906,112.19,219.46,219.44,7.28]
[1757411083307,1.29,219.46,219.44,7.28]
[1757411083608,1.27,219.46,219.43,7.7]
[1757411083808,110.88,219.47,219.43,7.7]
[1757411084110,1.27,219.46,219.43,7.7]
[1757411084406,110.88,219.47,219.43,7.7]
[1757411084608,1.27,219.46,219.43,7.7]
[1757411085906,1.27,219.46,219.42,0.03228534]
[1757411086108,4.2413473,219.46,219.42,0.03228534]
[1757411086803,4.7013473,219.46,219.42,0.03228534]
[1757411090210,110.88,219.45,219.42,0.03228534]
[1757411090405,1.27,219.44,219.42,0.03228534]
[1757411090609,110.88,219.45,219.42,0.03228534]
[1757411090810,1.27,219.44,219.42,0.03228534]
[1757411092702,7.66883483,219.49,219.42,0.03228534]
[1757411092904,2.9713473,219.47,219.42,0.03228534]
[1757411093113,1.27,219.46,219.42,0.03228534]
[1757411093314,2.9713473,219.47,219.37,7.7]
[1757411093515,2.9713473,219.47,219.42,0.03393009]
[1757411093705,1.27,219.46,219.42,0.03393009]
[1757411094114,1.27,219.44,219.42,0.03393009]
[1757411094312,2.9713473,219.47,219.42,0.03393009]
[1757411094712,1.27,219.45,219.42,0.03393009]
[1757411094916,22.0,219.46,219.42,0.03393009]
[1757411095115,1.27,219.45,219.42,0.03393009]
[1757411095308,22.0,219.46,219.42,0.03393009]
[1757411095710,1.27,219.45,219.42,0.03393009]
[1757411096011,1.27,219.43,219.42,0.03393009]
[1757411098806,1.73,219.43,219.33,7.7]
[1757411099009,2.9713473,219.38,219.27,7.7]
[1757411099319,11.58,219.37,219.28,4.29999086]
[1757411099616,1.24,219.35,219.27,7.7]
[1757411100116,0.02954301,219.33,219.27,7.7]
[1757411100313,0.02954301,219.33,219.21,4.1052]
[1757411100314,110.9,219.32,219.22,7.7]
[1757411100521,110.9,219.32,219.24,7.7]
[1757411100708,0.02954301,219.33,219.26,7.7]
[1757411100914,36.98954301,219.33,219.26,7.7]
[1757411104226,0.02954301,219.33,219.26,7.7]
[1757411104427,0.02954301,219.33,219.26,10.6713473]
[1757411104626,0.02954301,219.33,219.27,7.7]
[1757411104924,0.02954301,219.33,219.28,7.7]
[1757411106925,0.02954301,219.33,219.29,4.1037]
[1757411107627,0.02954301,219.33,219.28,7.7]
[1757411108627,0.02954301,219.33,219.27,4.1042]
[1757411108925,0.02954301,219.33,219.28,7.7]
[1757411110226,0.02954301,219.33,219.3,7.7]
[1757411111021,0.02954301,219.33,219.3,7.7]
[1757411111221,0.02954301,219.33,219.29,2.9713473]
[1757411111417,0.02954301,219.33,219.3,7.7]
[1757411111631,0.02954301,219.33,219.29,2.9713473]
[1757411111824,0.02954301,219.33,219.3,7.7]
[1757411112025,0.02954301,219.33,219.29,2.9713473]
[1757411112325,26.14,219.41,219.29,2.9713473]
[1757411112326,1.24,219.41,219.32,2.9713473]
[1757411112630,1.24,219.41,219.33,7.7]
[1757411113530,1.24,219.41,219.35,0.02907227]
[1757411114532,1.24,219.41,219.36,7.72]
[1757411114727,1.24,219.41,219.35,7.74907227]
[1757411127940,1.29,219.41,219.35,0.02907227]
[1757411129236,1.29,219.42,219.35,0.02907227]
[1757411129443,110.9,219.41,219.35,0.02907227]
[1757411129844,1.29,219.42,219.35,0.02907227]
[1757411130040,110.9,219.41,219.35,0.02907227]
[1757411130843,1.29,219.4,219.35,0.02907227]
[1757411131032,110.9,219.41,219.35,0.02907227]
[1757411131238,1.29,219.4,219.35,0.02907227]
[1757411131446,110.9,219.41,219.35,0.02907227]
[1757411131739,1.29,219.39,219.35,0.02907227]
[1757411131941,110.9,219.4,219.35,0.02907227]
[1757411132142,110.9,219.4,219.35,7.74907227]
[1757411132342,1.29,219.39,219.35,7.74907227]
[1757411132739,110.9,219.4,219.35,7.74907227]
[1757411133142,1.29,219.44,219.35,7.74907227]
[1757411133443,1.29,219.38,219.35,7.74907227]
[1757411133946,110.9,219.37,219.35,7.74907227]
[1757411135047,110.9,219.37,219.35,0.02907227]
[1757411135345,1.29,219.38,219.35,0.02907227]
[1757411135346,112.19,219.38,219.36,7.72]
[1757411135738,1.29,219.38,219.36,7.72]
[1757411135943,112.19,219.38,219.36,7.72]
[1757411137751,112.19,219.38,219.35,0.02907227]
[1757411137958,112.19,219.38,219.35,7.74907227]
[1757411139248,110.9,219.37,219.35,7.74907227]
[1757411139443,112.19,219.37,219.35,0.02907227]
[1757411140753,1.29,219.36,219.35,0.02907227]
[1757411140944,3.19366202,219.36,219.35,0.02907227]
[1757411141550,3.65366202,219.36,219.35,0.02907227]
[1757411141749,1.26,219.35,219.2,132.19070281]
[1757411141948,3.16366202,219.28,219.21,11.40344144]
[1757411142255,34.28,219.28,219.21,7.72]
[1757411142453,34.28,219.28,219.22,1.90366202]
[1757411142855,34.28,219.28,219.23,7.72]
[1757411143049,0.03394392,219.27,219.23,7.72]
[1757411143353,1.30394392,219.27,219.21,9.62366202]
[1757411146250,0.03394392,219.27,219.21,9.62366202]
[1757411163670,0.03394392,219.27,219.24,7.01]
[1757411164271,0.03394392,219.27,219.23,1.90366202]
[1757411164471,0.03394392,219.27,219.24,7.01]
[1757411164872,0.03394392,219.27,219.23,1.90366202]
[1757411165470,0.03394392,219.27,219.24,7.01]
[1757411165671,0.03394392,219.27,219.23,1.90366202]
[1757411165873,0.03394392,219.27,219.24,7.01]
[1757411166174,0.03394392,219.27,219.23,1.90366202]
[1757411166574,0.03394392,219.27,219.24,7.01]
[1757411167173,0.03394392,219.27,219.23,1.90366202]
[1757411167379,1.29394392,219.27,219.2,7.01]
[1757411167580,1.29394392,219.27,219.21,7.01]
[1757411167773,0.03394392,219.27,219.21,7.01]
[1757411168672,0.03394392,219.27,219.25,7.01]
[1757411169273,0.03394392,219.27,219.24,1.90366202]
[1757411169671,0.03394392,219.27,219.25,7.01]
[1757411169876,0.03394392,219.27,219.24,1.90366202]
[1757411170473,0.03394392,219.27,219.25,7.01]
[1757411170677,0.03394392,219.27,219.26,8.91366202]
[1757411172778,0.03394392,219.27,219.18,7.01]
[1757411172984,0.03394392,219.27,219.21,1.90366202]
[1757411173385,0.03394392,219.27,219.22,7.14]
[1757411173576,0.03394392,219.27,219.21,1.90366202]
[1757411173986,1.29394392,219.27,219.21,7.14]
[1757411174286,1.26,219.22,219.15,7.14]
[1757411174481,1.26,219.22,218.97,135.51830301]
[1757411174482,1.26,219.16,219.06,7.14]
[1757411174683,13.69,219.25,219.06,7.14]
[1757411174684,1.90366202,219.12,219.06,7.14]
[1757411174882,1.26,219.11,219.04,7.14]
[1757411175081,1.26,219.11,219.05,3.67919573]
[1757411175280,1.26,219.11,219.04,7.14]
[1757411175882,0.03040419,219.13,219.06,7.14]
[1757411176278,1.90366202,219.1,219.06,7.14]
[1757411176586,3.16366202,219.1,219.03,7.14]
[1757411176777,1.90366202,219.08,219.03,7.14]
[1757411176977,1.90366202,219.08,218.68,1314.36]
[1757411176978,1.26,219.03,218.93,7.14]
[1757411177183,1.26,219.09,218.9,7.14]
[1757411177386,1.90366202,218.99,218.9,9.04366202]
[1757411177686,12.68,218.98,218.9,9.04366202]
[1757411177886,13.94,218.98,218.9,7.14]
[1757411178187,1.93477281,218.96,218.9,7.14]
[1757411179184,0.03111079,218.96,218.9,9.04366202]
[1757411179381,0.03111079,218.96,218.84,63.9687]
[1757411179585,0.03111079,218.96,218.93,7.14]
[1757411180479,0.03111079,218.96,218.95,7.14]
[1757411181383,0.03111079,218.96,218.95,9.04366202]
[1757411181789,14.72,219.04,218.96,7.14]
[1757411181986,14.72,219.04,218.98,1.90366202]
[1757411182584,14.72,219.04,218.96,9.04366202]
[1757411182988,14.72,219.04,218.98,0.03464041]
[1757411183281,1.90366202,219.03,218.98,0.03464041]
[1757411183881,1.29,219.02,218.98,0.03464041]
[1757411184080,1.90366202,219.03,218.98,0.03464041]
[1757411184486,1.29,219.02,218.98,0.03464041]
[1757411185487,14.72,219.04,218.98,0.03464041]
[1757411186890,306.72,219.11,219.03,1.90366202]
[1757411186891,1.29,219.1,219.03,1.90366202]
[1757411187490,1.29,219.1,219.04,0.03325836]
[1757411187790,306.72,219.11,219.05,9.04366202]
[1757411189196,306.72,219.11,219.06,9.04366202]
[1757411189495,113.75,219.14,219.08,1.90366202]
[1757411190101,113.75,219.14,219.09,9.07518129]
[1757411191205,112.46,219.14,219.09,9.07518129]
[1757411191395,1.29,219.13,219.09,7.17151927]
[1757411192201,1.29,219.1,219.09,0.03151927]
[1757411193296,3.19366202,219.1,219.09,0.03151927]
[1757411193495,1.29,219.1,219.09,0.03151927]
[1757411193698,20.65,219.1,219.09,0.03151927]
[1757411199404,38.65,219.12,219.09,0.03151927]
[1757411199599,1.29,219.11,219.09,0.03151927]
[1757411201504,3.19366202,219.11,219.09,0.03151927]
[1757411202305,1.29,219.11,219.09,0.03151927]
[1757411203599,1.28,219.22,219.1,7.08]
[1757411203800,1.28,219.18,219.09,0.03151927]
[1757411204010,2.98208223,219.16,219.06,7.08]
[1757411204302,2.98208223,219.16,219.11,0.03237418]
[1757411204905,1.28,219.15,219.11,0.03237418]
[1757411205105,2.98208223,219.16,219.11,0.03237418]
[1757411205299,112.88,219.21,219.11,0.03237418]
[1757411205300,1.28,219.18,219.11,0.03237418]
[1757411218509,4.26208223,219.18,219.11,0.03237418]
[1757411220715,112.54,219.17,219.11,0.03237418]
[1757411221217,113.82,219.17,219.11,0.03237418]
[1757411223314,2.98208223,219.12,219.11,0.03237418]
[1757411223520,4.26208223,219.12,219.11,0.03237418]
[1757411225216,1.28,219.11,219.01,7.08]
[1757411225416,1.28,219.09,219.01,7.08]
[1757411226621,0.02911187,219.07,219.01,7.08]
[1757411230720,1.28,219.06,218.96,7.08]
[1757411231318,1.28,219.05,218.96,7.08]
[1757411231520,0.03447799,219.03,218.96,7.08]
[1757411231720,26.89447799,219.03,218.96,7.08]
[1757411231922,1.28,219.02,218.96,7.08]
[1757411234829,45.68,219.01,218.9,2.98208223]
[1757411235032,1.28,219.02,218.92,7.66]
[1757411235228,44.8,219.01,218.92,7.66]
[1757411235428,0.03243432,218.99,218.92,7.66]
[1757411235629,0.03243432,218.99,218.93,2.98208223]
[1757411235828,0.03243432,218.99,218.94,7.66]
[1757411236032,43.44,219.03,218.94,7.66]
[1757411236226,1.3,218.98,218.85,7.66]
[1757411236531,3.46,218.97,218.86,7.66]
[1757411236931,0.02915957,218.94,218.86,7.66]
[1757411237132,0.02915957,218.94,218.88,7.66]
[1757411238234,0.02915957,218.94,218.89,3.67661339]
[1757411238532,0.02915957,218.94,218.9,7.66]
[1757411257042,0.02915957,218.94,218.9,2.98208223]
[1757411257230,0.02915957,218.94,218.91,7.66]
[1757411257939,0.02915957,218.94,218.9,2.98208223]
[1757411258140,0.02915957,218.94,218.91,7.66]
[1757411259642,0.02915957,218.94,218.9,2.98208223]
[1757411259841,0.02915957,218.94,218.91,7.66]
[1757411260843,0.02915957,218.94,218.9,2.98208223]
[1757411261140,0.02915957,218.94,218.91,7.66]
[1757411261344,0.02915957,218.94,218.9,2.98208223]
[1757411261545,0.02915957,218.94,218.91,7.66]
[1757411261745,0.02915957,218.94,218.9,2.98208223]
[1757411261937,0.02915957,218.94,218.91,7.66]
[1757411262343,0.02915957,218.94,218.92,1.91044071]
[1757411262541,0.02915957,218.94,218.93,7.66]
[1757411271250,0.02915957,218.94,218.93,11.34846818]
[1757411273749,0.02915957,218.94,218.93,3.68846818]
[1757411276550,0.02915957,218.94,218.93,3.6960901]
[1757411277456,0.02915957,218.94,218.87,1.91044071]
[1757411277754,0.02915957,218.94,218.88,3.69756166]
[1757411277956,0.02915957,218.94,218.89,3.69756166]
[1757411278252,0.02915957,218.94,218.9,3.69756166]
[1757411278554,0.02915957,218.94,218.91,3.69756166]
[1757411278757,0.02915957,218.94,218.87,1.91044071]
[1757411278952,0.02915957,218.94,218.88,3.69695237]
[1757411279153,0.02915957,218.94,218.89,3.69695237]
[1757411279355,0.02915957,218.94,218.9,3.69695237]
[1757411279651,0.02915957,218.94,218.87,1.91044071]